bitfinex/quotes_SOLUSD_20251018
["timestamp","ask_amount","ask_price","bid_price","bid_amount"]
[1760808582016,2.81281838,185.92,185.89,0.69]
[1760808582017,3.46286024,185.91,185.89,0.69]
[1760808582315,3.46286024,185.91,185.88,5.37961109]
[1760808582526,3.46286024,185.91,185.88,6.06961109]
[1760808583054,3.46286024,185.91,185.85,20.37742884]
[1760808583230,3.46286024,185.91,185.86,19.55137845]
[1760808583529,2.81281838,185.92,185.87,3.46286024]
[1760808583737,2.81281838,185.92,185.88,0.72]
[1760808583931,6.27567862,185.92,185.88,0.72]
[1760808584426,6.27567862,185.92,185.89,0.72]
[1760808584626,6.27567862,185.92,185.9,0.72]
[1760808586711,6.27567862,185.92,185.9,6.09915353]
[1760808588516,2.81281838,185.92,185.9,6.09915353]
[1760808588716,6.27567862,185.92,185.9,6.09915353]
[1760808589118,6.27567862,185.92,185.88,0.72]
[1760808589317,4.15286024,185.91,185.87,5.38010437]
[1760808589538,3.46286024,185.9,185.87,5.38010437]
[1760808589841,3.46286024,185.9,185.88,0.72]
[1760808590149,3.46286024,185.91,185.88,0.72]
[1760808590444,3.46286024,185.91,185.89,5.37952552]
[1760808590918,0.69,185.92,185.89,5.37952552]
[1760808591119,3.46286024,185.91,185.89,5.37952552]
[1760808591939,0.69,185.92,185.89,5.37952552]
[1760808592242,3.46286024,185.91,185.89,5.37952552]
[1760808594938,3.46286024,185.91,185.88,0.72]
[1760808595136,3.46286024,185.91,185.87,5.38010437]
[1760808595327,3.46286024,185.91,185.88,0.72]
[1760808596038,5.15129459,185.95,185.89,5.37952552]
[1760808596243,4.15286024,185.9,185.86,23.6]
[1760808596437,3.46286024,185.88,185.86,5.38034767]
[1760808596637,3.46286024,185.87,185.86,5.38034767]
[1760808598946,4.15286024,185.87,185.85,5.38068334]
[1760808599142,3.46286024,185.86,185.85,5.38068334]
[1760808599846,3.46286024,185.87,185.85,5.38068334]
[1760808600418,3.46286024,185.87,185.84,5.38097287]
[1760808600642,3.46286024,185.87,185.84,6.10097287]
[1760808600941,3.46286024,185.89,185.85,0.72]
[1760808601434,3.46286024,185.89,185.86,0.72]
[1760808601621,3.46286024,185.89,185.84,5.38097287]
[1760808601818,3.46286024,185.88,185.86,0.72]
[1760808602045,3.46286024,185.88,185.84,6.10097287]
[1760808602251,3.46286024,185.88,185.85,0.72]
[1760808602424,3.46286024,185.86,185.81,0.72]
[1760808602623,3.46286024,185.85,185.82,5.38151245]
[1760808602827,3.46286024,185.85,185.82,6.10151245]
[1760808604861,3.46286024,185.83,185.8,6.10185094]
[1760808605029,5.37957604,185.89,185.8,6.10185094]
[1760808605030,3.46286024,185.82,185.8,0.72]
[1760808605571,3.46286024,185.83,185.8,0.72]
[1760808605845,0.69,185.84,185.81,0.72]
[1760808605846,3.46286024,185.84,185.81,0.72]
[1760808606048,3.46286024,185.85,185.82,0.72]
[1760808606224,0.69,185.87,185.82,0.72]
[1760808606429,0.69,185.87,185.83,0.71]
[1760808606430,3.46286024,185.87,185.83,0.71]
[1760808606629,3.46286024,185.88,185.83,0.71]
[1760808606853,3.46286024,185.89,185.83,4.17286024]
[1760808607057,3.46286024,185.9,185.84,27.05286024]
[1760808607238,3.46286024,185.9,185.85,0.71]
[1760808607544,3.46286024,185.89,185.85,0.71]
[1760808607753,0.68,185.92,185.86,5.38039384]
[1760808608074,3.46286024,185.92,185.87,0.71]
[1760808608426,3.46286024,185.91,185.87,0.71]
[1760808608628,3.46286024,185.92,185.87,0.71]
[1760808609243,3.46286024,185.92,185.86,22.29423869]
[1760808609448,102.78,185.93,185.87,0.71]
[1760808609743,3.46286024,185.92,185.88,5.37981493]
[1760808609936,5.15129459,185.95,185.89,0.71]
[1760808609937,3.46286024,185.94,185.89,0.71]
[1760808610350,5.80179581,185.95,185.89,0.71]
[1760808611140,5.80179581,185.95,185.9,5.37923614]
[1760808611345,2.33893557,185.95,185.91,0.71]
[1760808611654,2.33893557,185.95,185.94,3.46286024]
[1760808611855,2.33893557,185.95,185.94,0.71]
[1760808612057,2.33893557,185.95,185.94,27.05286024]
[1760808612937,2.33893557,185.95,185.94,32.43093919]
[1760808613952,2.33893557,185.95,185.94,28.96807895]
[1760808614149,2.33893557,185.95,185.92,28.25865043]
[1760808614386,3.46286024,185.93,185.9,15.97443678]
[1760808614539,3.46286024,185.91,185.9,15.97443678]
[1760808614744,4.13286024,185.91,185.86,6.10035942]
[1760808614964,3.46286024,185.89,185.86,6.10035942]
[1760808615160,3.46286024,185.91,185.87,0.72]
[1760808615359,3.46286024,185.91,185.86,5.38035942]
[1760808615360,3.46286024,185.89,185.86,5.38035942]
[1760808615664,3.46286024,185.91,185.86,5.38035942]
[1760808615875,3.46286024,185.93,185.87,4.18286024]
[1760808616065,3.46286024,185.93,185.87,0.72]
[1760808616237,0.67,185.94,185.87,0.72]
[1760808616238,3.46286024,185.91,185.87,0.72]
[1760808616436,2.33893557,185.95,185.88,4.18286024]
[1760808616741,3.46286024,185.94,185.89,22.88]
[1760808617051,3.46286024,185.9,185.86,28.98035942]
[1760808617848,3.46286024,185.91,185.87,0.72]
[1760808618759,3.46286024,185.91,185.86,28.26035942]
[1760808618966,3.46286024,185.9,185.86,28.98035942]
[1760808619143,4.13286024,185.9,185.86,28.98035942]
[1760808619674,3.46286024,185.9,185.86,28.98035942]
[1760808620767,3.46286024,185.9,185.87,6.09996559]
[1760808621365,0.67,185.92,185.87,5.37996559]
[1760808621570,3.46286024,185.9,185.88,0.72]
[1760808622068,3.46286024,185.9,185.86,28.26027281]
[1760808622249,0.67,185.92,185.86,28.98027281]
[1760808622569,3.46286024,185.9,185.86,28.98027281]
[1760808622754,3.46286024,185.9,185.87,0.72]
[1760808622955,3.46286024,185.89,185.86,22.88]
[1760808623156,3.46286024,185.89,185.86,23.6]
[1760808623470,3.46286024,185.89,185.87,0.72]
[1760808623870,4.13286024,185.88,185.81,0.72]
[1760808624056,3.46286024,185.86,185.81,0.72]
[1760808624565,3.46286024,185.87,185.82,0.72]
[1760808624766,0.67,185.91,185.83,0.72]
[1760808624945,3.46286024,185.9,185.84,3.46286024]
[1760808625144,3.46286024,185.89,185.85,0.72]
[1760808625340,3.46286024,185.89,185.86,0.72]
[1760808626071,3.46286024,185.9,185.86,6.10022354]
[1760808626574,3.46286024,185.9,185.87,0.72]
[1760808626744,3.46286024,185.91,185.88,0.72]
[1760808627466,3.46286024,185.92,185.89,0.72]
[1760808627659,3.46286024,185.92,185.87,0.72]
[1760808627857,3.46286024,185.92,185.88,0.72]
[1760808628377,3.46286024,185.92,185.88,6.09966818]
[1760808628750,3.46286024,185.92,185.88,0.72]
[1760808629065,3.46286024,185.89,185.85,6.10043409]
[1760808629375,3.46286024,185.88,185.85,6.10043409]
[1760808629666,3.46286024,185.87,185.83,5.38097978]
[1760808629869,3.46286024,185.86,185.83,5.38097978]
[1760808630053,3.46286024,185.85,185.81,6.10158955]
[1760808630362,3.46286024,185.84,185.81,6.10158955]
[1760808631155,3.46286024,185.86,185.82,0.72]
[1760808631361,3.46286024,185.88,185.82,4.18286024]
[1760808631561,3.46286024,185.88,185.83,0.72]
[1760808631764,3.46286024,185.88,185.84,0.72]
[1760808632166,3.46286024,185.88,185.85,0.72]
[1760808632362,3.46286024,185.87,185.84,5.38086363]
[1760808632568,3.46286024,185.87,185.84,6.10086363]
[1760808633145,3.46286024,185.87,185.84,5.38086363]
[1760808633350,3.46286024,185.86,185.83,5.38123669]
[1760808633550,3.46286024,185.84,185.8,0.72]
[1760808634383,3.46286024,185.84,185.81,5.38184166]
[1760808634848,3.46286024,185.84,185.8,6.10209311]
[1760808635046,0.67,185.87,185.81,0.72]
[1760808635248,3.46286024,185.85,185.81,0.72]
[1760808635459,3.46286024,185.84,185.8,5.38209311]
[1760808635669,3.46286024,185.84,185.81,0.72]
[1760808636374,3.46286024,185.84,185.82,5.38155203]
[1760808636585,3.46286024,185.85,185.82,6.10155203]
[1760808636757,3.46286024,185.85,185.81,5.38177138]
[1760808636951,3.46286024,185.84,185.81,6.10177138]
[1760808637151,3.46286024,185.84,185.81,0.72]
[1760808637351,3.46286024,185.84,185.8,5.38207162]
[1760808637551,3.46286024,185.84,185.8,6.10207162]
[1760808637760,3.46286024,185.86,185.81,4.18286024]
[1760808637959,0.67,185.9,185.82,4.18286024]
[1760808638154,3.46286024,185.89,185.83,4.18286024]
[1760808638368,3.46286024,185.88,185.84,0.72]
[1760808638571,3.46286024,185.87,185.83,5.3811973]
[1760808638761,3.46286024,185.87,185.83,6.1011973]
[1760808639402,3.46286024,185.87,185.84,0.72]
[1760808639600,3.46286024,185.88,185.84,6.10093477]
[1760808639893,3.46286024,185.87,185.84,5.38093477]
[1760808640270,3.46286024,185.86,185.83,5.38120349]
[1760808640468,3.46286024,185.86,185.83,6.10120349]
[1760808640900,3.46286024,185.85,185.83,6.10120349]
[1760808641103,3.46286024,185.87,185.84,0.72]
[1760808641594,3.46286024,185.87,185.83,5.38120349]
[1760808641769,3.46286024,185.84,185.71,5.38473964]
[1760808641974,0.67,185.83,185.73,0.72]
[1760808642275,0.67,185.83,185.73,4.18286024]
[1760808642490,0.67,185.85,185.74,0.72]
[1760808643107,3.46286024,185.81,185.75,3.46286024]
[1760808643292,3.46286024,185.8,185.76,6.07329026]
[1760808643496,3.46286024,185.78,185.75,5.38353342]
[1760808643795,3.46286024,185.78,185.75,6.07353342]
[1760808644495,3.46286024,185.77,185.74,5.38384163]
[1760808644679,3.46286024,185.76,185.74,5.38384163]
[1760808644876,0.7,185.78,185.74,5.38384163]
[1760808645075,3.46286024,185.77,185.74,5.38384163]
[1760808645272,3.46286024,185.78,185.74,5.38384163]
[1760808645580,3.46286024,185.78,185.74,6.07384163]
[1760808645899,3.46286024,185.77,185.74,6.07384163]
[1760808646503,3.46286024,185.77,185.74,0.69]
[1760808646802,3.46286024,185.77,185.74,6.07380385]
[1760808647183,3.46286024,185.77,185.73,5.38411331]
[1760808647386,3.46286024,185.76,185.72,5.3844497]
[1760808647900,3.46286024,185.76,185.73,0.69]
[1760808648402,3.46286024,185.74,185.72,5.3844497]
[1760808648896,3.46286024,185.73,185.7,0.2]
[1760808649497,3.46286024,185.72,185.7,0.2]
[1760808650497,0.7,185.76,185.71,0.69]
[1760808650800,3.46286024,185.75,185.72,0.69]
[1760808651396,3.46286024,185.75,185.7,9.73787885]
[1760808651700,3.46286024,185.75,185.71,0.69]
[1760808652486,3.46286024,185.75,185.71,6.07447711]
[1760808653373,0.7,185.77,185.72,0.69]
[1760808653573,3.46286024,185.75,185.71,5.38447711]
[1760808653791,3.46286024,185.75,185.71,6.07447711]
[1760808654403,3.46286024,185.74,185.71,6.07447711]
[1760808655096,3.46286024,185.74,185.71,0.69]
[1760808655504,3.46286024,185.74,185.71,6.07467779]
[1760808657780,3.46286024,185.75,185.71,6.07467779]
[1760808658129,3.46286024,185.74,185.71,23.57]
[1760808658896,3.46286024,185.74,185.71,28.95465642]
[1760808660624,3.46286024,185.72,185.7,0.2]
[1760808660794,3.46286024,185.71,185.7,0.2]
[1760808661593,23.58,185.78,185.7,0.89]
[1760808661799,3.46286024,185.76,185.7,9.73776876]
[1760808662109,3.46286024,185.75,185.71,0.69]
[1760808662588,3.46286024,185.75,185.71,6.07471452]
[1760808663309,3.46286024,185.73,185.71,6.07471452]
[1760808665408,3.46286024,185.73,185.71,0.69]
[1760808665592,3.46286024,185.74,185.71,0.69]
[1760808666105,3.46286024,185.73,185.7,0.2]
[1760808666313,3.46286024,185.71,185.7,0.2]
[1760808666504,3.46286024,185.72,185.7,0.2]
[1760808666699,3.46286024,185.72,185.7,0.87]
[1760808667306,3.46286024,185.72,185.7,0.2]
[1760808668404,3.46286024,185.71,185.7,0.2]
[1760808670920,36.33689255,185.78,185.7,0.2]
[1760808670921,3.46286024,185.79,185.7,32.5977458]
[1760808671092,0.67,185.82,185.76,3.46286024]
[1760808671093,3.46286024,185.82,185.76,3.46286024]
[1760808671408,3.46286024,185.81,185.77,0.67]
[1760808671794,3.48383519,185.86,185.78,0.67]
[1760808671994,3.46286024,185.84,185.78,27.01286024]
[1760808672193,3.46286024,185.84,185.79,0.67]
[1760808672491,3.46286024,185.84,185.78,26.34286024]
[1760808672694,0.67,185.85,185.79,0.67]
[1760808672695,3.46286024,185.83,185.79,0.67]
[1760808672892,2.81383519,185.86,185.78,22.88]
[1760808672893,2.81383519,185.86,185.8,4.13286024]
[1760808673088,6.27669543,185.86,185.81,0.67]
[1760808673316,3.46286024,185.84,185.79,0.67]
[1760808673722,2.81383519,185.86,185.8,0.67]
[1760808673897,3.46286024,185.85,185.81,5.38184166]
[1760808674097,3.46286024,185.85,185.81,6.05184166]
[1760808675122,3.46286024,185.85,185.82,0.67]
[1760808675421,22.88,185.91,185.83,0.67]
[1760808675422,3.46286024,185.87,185.83,0.67]
[1760808675598,0.72,185.89,185.84,0.67]
[1760808675799,3.46286024,185.86,185.81,0.67]
[1760808676014,3.46286024,185.82,185.78,28.93269445]
[1760808676204,3.46286024,185.8,185.78,22.88]
[1760808676724,3.46286024,185.79,185.77,22.88]
[1760808677302,3.46286024,185.78,185.75,0.67]
[1760808677530,3.46286024,185.76,185.7,0.87]
[1760808677722,3.46286024,185.71,185.7,0.2]
[1760808677923,3.46286024,185.71,185.7,23.08]
[1760808678501,4.33017988,185.8,185.7,4.33286024]
[1760808678728,3.46286024,185.79,185.73,3.46286024]
[1760808678898,3.46286024,185.79,185.72,22.88]
[1760808678899,3.46286024,185.77,185.72,23.55]
[1760808679095,3.46286024,185.76,185.73,0.67]
[1760808679307,3.46286024,185.77,185.73,0.67]
[1760808679519,3.46286024,185.77,185.74,5.38386992]
[1760808680021,3.46286024,185.77,185.73,6.05403208]
[1760808680524,3.46286024,185.75,185.73,6.05403208]
[1760808680911,3.46286024,185.76,185.73,6.05403208]
[1760808681502,3.46286024,185.74,185.73,22.88]
[1760808681718,0.72,185.75,185.71,5.38472401]
[1760808681920,3.46286024,185.76,185.72,0.67]
[1760808682124,3.46286024,185.75,185.72,0.67]
[1760808682604,3.46286024,185.74,185.72,0.67]
[1760808683030,3.46286024,185.73,185.7,0.2]
[1760808683414,3.46286024,185.72,185.7,0.2]
[1760808683611,3.46286024,185.71,185.7,0.2]
[1760808685620,3.46286024,185.72,185.7,0.2]
[1760808686506,0.72,185.75,185.7,0.2]
[1760808686507,3.46286024,185.71,185.7,0.2]
[1760808689428,0.72,185.74,185.7,0.2]
[1760808689627,3.46286024,185.71,185.7,0.2]
[1760808692926,4.18286024,185.71,185.7,0.2]
[1760808693824,9.56759988,185.71,185.7,0.2]
[1760808694813,20.44407509,185.71,185.7,0.2]
[1760808695025,122.54407509,185.71,185.7,0.2]
[1760808695224,126.16556295,185.71,185.7,0.2]
[1760808695424,149.04556295,185.71,185.7,0.2]
[1760808696031,22.88,185.67,185.54,13.4738598]
[1760808696228,3.46286024,185.61,185.56,6.25890776]
[1760808696439,3.46286024,185.6,185.56,28.46890776]
[1760808696623,0.72,185.64,185.57,0.67]
[1760808696830,3.46286024,185.61,185.57,6.05855271]
[1760808697026,3.46286024,185.61,185.58,0.67]
[1760808697225,3.46286024,185.6,185.58,0.67]
[1760808697737,3.46286024,185.59,185.58,0.67]
[1760808697920,3.46286024,185.6,185.58,0.67]
[1760808700039,3.46286024,185.59,185.57,28.26876665]
[1760808700339,3.46286024,185.59,185.57,28.93876665]
[1760808701041,3.46286024,185.58,185.56,0.2]
[1760808701240,3.46286024,185.57,185.56,0.2]
[1760808701747,3.46286024,185.59,185.56,6.25909247]
[1760808701919,3.46286024,185.59,185.57,0.67]
[1760808702118,3.46286024,185.6,185.58,0.67]
[1760808702645,3.46286024,185.62,185.59,0.67]
[1760808702827,3.46286024,185.61,185.59,0.67]
[1760808703726,4.17286024,185.6,185.56,23.08]
[1760808703925,3.46286024,185.58,185.56,23.79]
[1760808704841,3.46286024,185.58,185.56,5.58904982]
[1760808705142,3.46286024,185.58,185.57,0.71]
[1760808705442,3.46286024,185.58,185.56,5.58904982]
[1760808705744,3.46286024,185.58,185.56,6.29904982]
[1760808706331,3.46286024,185.58,185.56,0.91]
[1760808706524,0.71,185.61,185.56,6.29903314]
[1760808706846,3.46286024,185.58,185.56,6.29903314]
[1760808707043,3.46286024,185.6,185.57,0.71]
[1760808707234,3.46286024,185.6,185.58,0.71]
[1760808707744,6.28008613,185.63,185.59,23.59]
[1760808707928,3.46286024,185.63,185.6,0.71]
[1760808708946,3.46286024,185.61,185.59,22.88]
[1760808709149,3.46286024,185.6,185.59,22.88]
[1760808709336,3.46286024,185.6,185.56,5.58903644]
[1760808709533,3.46286024,185.59,185.56,6.29903644]
[1760808709742,3.46286024,185.59,185.57,0.71]
[1760808710134,0.71,185.62,185.57,0.71]
[1760808710338,3.46286024,185.59,185.57,0.71]
[1760808710537,3.46286024,185.61,185.58,0.71]
[1760808710744,3.46286024,185.62,185.59,0.71]
[1760808711248,3.46286024,185.62,185.59,6.09813629]
[1760808711439,3.46286024,185.61,185.59,6.09813629]
[1760808712046,3.46286024,185.61,185.6,22.88]
[1760808712235,4.17286024,185.61,185.57,22.88]
[1760808712437,0.71,185.61,185.58,22.88]
[1760808712743,3.46286024,185.59,185.58,22.88]
[1760808712943,4.17286024,185.59,185.58,22.88]
[1760808713627,3.46286024,185.59,185.58,22.88]
[1760808715450,3.46286024,185.59,185.56,0.2]
[1760808715757,3.46286024,185.57,185.56,0.91]
[1760808715957,3.46286024,185.58,185.56,0.91]
[1760808716824,0.71,185.62,185.56,6.29906895]
[1760808716825,3.46286024,185.59,185.56,6.29906895]
[1760808717735,3.46286024,185.59,185.56,5.58906895]
[1760808718062,3.46286024,185.6,185.57,6.09875938]
[1760808718234,3.46286024,185.6,185.57,0.71]
[1760808718554,3.46286024,185.59,185.57,0.71]
[1760808718753,3.46286024,185.6,185.57,0.71]
[1760808719053,3.46286024,185.6,185.58,0.71]
[1760808720365,133.18357945,185.65,185.59,0.71]
[1760808720366,3.46286024,185.61,185.59,0.71]
[1760808720860,3.46286024,185.61,185.58,5.38850664]
[1760808721169,3.46286024,185.6,185.58,0.71]
[1760808721936,3.46286024,185.6,185.58,6.09847169]
[1760808722350,3.46286024,185.59,185.56,0.2]
[1760808722667,3.46286024,185.57,185.56,0.2]
[1760808723151,4.17286024,185.57,185.56,0.2]
[1760808727536,9.5616623,185.57,185.56,0.2]
[1760808728551,22.88,185.54,185.45,0.71]
[1760808728865,3.46286024,185.46,185.43,0.71]
[1760808729061,3.46286024,185.46,185.44,0.71]
[1760808729240,3.46286024,185.46,185.45,0.71]
[1760808729445,3.46286024,185.46,185.41,5.39342643]
[1760808729644,3.46286024,185.46,185.44,0.71]
[1760808730162,3.46286024,185.45,185.4,22.88]
[1760808730370,3.46286024,185.44,185.41,0.71]
[1760808730665,3.46286024,185.43,185.41,0.71]
[1760808730866,3.46286024,185.44,185.41,0.71]
[1760808731253,3.46286024,185.42,185.37,0.71]
[1760808731444,3.46286024,185.4,185.37,0.71]
[1760808732053,3.46286024,185.39,185.37,0.71]
[1760808732248,3.46286024,185.4,185.37,0.71]
[1760808733189,3.46286024,185.39,185.37,0.71]
[1760808733341,0.67,185.42,185.34,6.09522409]
[1760808733342,3.46286024,185.38,185.34,6.09522409]
[1760808733542,23.55,185.42,185.35,0.7]
[1760808733765,3.46286024,185.4,185.35,0.7]
[1760808734067,102.1,185.45,185.37,3.46286024]
[1760808734068,3.46286024,185.43,185.37,3.46286024]
[1760808734265,3.46286024,185.45,185.39,3.46286024]
[1760808734476,0.71,185.48,185.4,9.55660349]
[1760808734477,3.46286024,185.46,185.4,9.55660349]
[1760808734645,3.46286024,185.46,185.41,0.7]
[1760808734845,3.46286024,185.46,185.4,8.85660349]
[1760808734846,3.46286024,185.45,185.42,0.7]
[1760808735149,0.71,185.48,185.42,0.7]
[1760808735150,3.46286024,185.48,185.43,0.7]
[1760808735342,3.46286024,185.5,185.44,3.46286024]
[1760808735542,3.46286024,185.5,185.45,0.7]
[1760808735759,3.46286024,185.48,185.4,41.75810139]
[1760808735962,22.88,185.51,185.4,31.73660349]
[1760808735963,3.46286024,185.46,185.4,31.73660349]
[1760808736156,3.46286024,185.44,185.4,5.39374325]
[1760808736365,3.46286024,185.44,185.41,0.7]
[1760808736547,3.46286024,185.45,185.41,0.7]
[1760808736749,3.46286024,185.45,185.42,0.7]
[1760808737670,28.27114937,185.49,185.38,0.7]
[1760808737671,3.46286024,185.43,185.38,0.7]
[1760808737874,22.88,185.46,185.38,5.39431771]
[1760808738051,3.46286024,185.45,185.39,4.16286024]
[1760808738375,3.46286024,185.44,185.39,0.7]
[1760808738667,3.46286024,185.45,185.4,0.7]
[1760808738846,3.46286024,185.45,185.41,0.7]
[1760808739045,3.46286024,185.45,185.39,3.46286024]
[1760808739265,3.46286024,185.45,185.42,0.7]
[1760808739753,3.46286024,185.45,185.41,5.39340795]
[1760808739946,3.46286024,185.44,185.41,0.7]
[1760808740265,3.46286024,185.43,185.39,5.39398519]
[1760808740464,3.46286024,185.43,185.39,6.09398519]
[1760808741360,3.46286024,185.42,185.39,6.09398519]
[1760808741745,3.46286024,185.41,185.37,28.27457573]
[1760808741945,3.46286024,185.41,185.37,5.39457573]
[1760808742169,3.46286024,185.43,185.38,0.7]
[1760808742360,3.46286024,185.43,185.39,0.7]
[1760808742947,3.46286024,185.43,185.37,8.85743597]
[1760808743264,3.46286024,185.43,185.39,5.39403419]
[1760808743465,3.46286024,185.45,185.39,8.85689443]
[1760808743764,3.46286024,185.45,185.4,0.7]
[1760808743962,3.46286024,185.46,185.41,3.46286024]
[1760808744164,3.46286024,185.46,185.42,0.7]
[1760808744355,3.46286024,185.46,185.43,0.7]
[1760808744975,3.46286024,185.46,185.41,0.7]
[1760808745176,3.46286024,185.45,185.42,0.7]
[1760808745465,3.46286024,185.48,185.43,8.85573086]
[1760808745694,3.46286024,185.48,185.44,0.7]
[1760808745857,3.46286024,185.49,185.45,0.7]
[1760808747455,3.46286024,185.48,185.45,6.09216297]
[1760808748249,3.46286024,185.49,185.46,0.7]
[1760808748455,3.46286024,185.5,185.46,0.7]
[1760808749772,3.46286024,185.5,185.46,5.39177585]
[1760808749957,3.46286024,185.5,185.47,0.7]
[1760808750159,3.46286024,185.5,185.46,5.39177585]
[1760808750459,3.46286024,185.5,185.46,6.09177585]
[1760808750858,3.46286024,185.5,185.44,3.46286024]
[1760808750859,3.46286024,185.5,185.47,0.7]
[1760808751060,3.46286024,185.51,185.45,8.85514926]
[1760808751262,3.46286024,185.49,185.45,6.09228902]
[1760808751456,3.46286024,185.49,185.46,0.7]
[1760808752582,3.46286024,185.49,185.46,6.09197115]
[1760808755393,3.46286024,185.5,185.47,0.7]
[1760808755565,3.46286024,185.51,185.45,22.33587182]
[1760808755890,3.46286024,185.52,185.48,0.7]
[1760808756378,105.56286024,185.53,185.49,0.7]
[1760808757189,102.1,185.53,185.49,0.7]
[1760808757490,102.1,185.53,185.49,6.09084927]
[1760808757863,102.1,185.53,185.5,0.7]
[1760808758482,102.1,185.53,185.51,0.7]
[1760808759668,102.1,185.53,185.52,0.7]
[1760808759991,3.46286024,185.56,185.52,0.7]
[1760808760189,3.46286024,185.56,185.53,0.7]
[1760808760377,3.46286024,185.57,185.53,0.7]
[1760808760694,4.17286024,185.57,185.53,0.7]
[1760808762093,104.91790663,185.6,185.49,0.7]
[1760808762094,3.46286024,185.54,185.49,0.7]
[1760808762302,3.46286024,185.51,185.48,5.39141686]
[1760808762509,102.1,185.57,185.48,5.39141686]
[1760808762672,3.46286024,185.54,185.49,0.7]
[1760808762872,3.46286024,185.52,185.48,5.39141686]
[1760808763094,4.17286024,185.51,185.48,5.39141686]
[1760808763596,3.46286024,185.5,185.47,5.39168188]
[1760808763889,3.46286024,185.5,185.46,13.47992275]
[1760808763890,3.46286024,185.49,185.46,5.39196049]
[1760808764098,3.46286024,185.48,185.46,5.39196049]
[1760808764593,3.46286024,185.49,185.46,5.39196049]
[1760808765384,3.46286024,185.49,185.47,6.10158175]
[1760808765589,3.46286024,185.5,185.47,5.39158175]
[1760808766598,3.46286024,185.49,185.46,5.39199827]
[1760808767092,0.72,185.51,185.46,6.10199827]
[1760808767390,4.18286024,185.5,185.46,6.10199827]
[1760808767569,3.46286024,185.49,185.46,5.39199827]
[1760808767985,102.1,185.54,185.46,5.39199827]
[1760808767986,4.18286024,185.48,185.46,5.39199827]
[1760808768186,3.46286024,185.47,185.45,5.39222733]
[1760808768593,3.46286024,185.48,185.44,5.39257981]
[1760808768793,3.46286024,185.5,185.45,0.71]
[1760808768984,3.46286024,185.5,185.46,0.71]
[1760808769185,3.46286024,185.51,185.46,0.71]
[1760808769792,4.18286024,185.51,185.46,0.71]
[1760808770096,4.18286024,185.5,185.44,18.87402933]
[1760808770278,4.18286024,185.5,185.44,19.58402933]
[1760808770479,4.18286024,185.5,185.46,5.39199827]
[1760808771997,3.46286024,185.49,185.46,5.39199827]
[1760808772384,4.18286024,185.5,185.46,5.39199827]
[1760808773291,3.46286024,185.51,185.47,0.71]
[1760808773470,4.18286024,185.51,185.45,0.71]
[1760808773669,102.82,185.54,185.45,4.17286024]
[1760808773880,3.46286024,185.52,185.46,0.71]
[1760808775187,3.46286024,185.51,185.47,5.39170755]
[1760808775383,102.1,185.53,185.47,5.39170755]
[1760808775589,102.1,185.53,185.48,0.71]
[1760808775888,3.46286024,185.51,185.47,6.10170755]
[1760808776880,0.72,185.52,185.48,0.71]
[1760808777199,4.18286024,185.52,185.48,0.71]
[1760808778380,102.1,185.51,185.48,0.71]
[1760808778698,105.56286024,185.51,185.47,5.39170755]
[1760808778890,105.56286024,185.51,185.47,6.10170755]
[1760808779198,3.46286024,185.48,185.43,5.39287062]
[1760808779406,3.46286024,185.48,185.44,0.71]
[1760808779587,4.18286024,185.48,185.44,0.71]
[1760808779797,3.46286024,185.47,185.42,0.71]
[1760808779983,0.72,185.46,185.4,0.71]
[1760808780177,3.46286024,185.44,185.4,6.10374325]
[1760808780392,4.18286024,185.43,185.38,0.71]
[1760808780804,3.46286024,185.43,185.39,0.71]
[1760808781103,3.46286024,185.41,185.34,0.71]
[1760808781316,3.46286024,185.39,185.34,6.10548937]
[1760808781499,4.18286024,185.39,185.34,6.10548937]
[1760808781686,3.46286024,185.38,185.34,6.10548937]
[1760808781880,0.72,185.39,185.34,6.10548937]
[1760808781881,0.72,185.39,185.34,5.39548937]
[1760808782081,102.1,185.45,185.38,3.46286024]
[1760808782297,106.28286024,185.47,185.4,3.46286024]
[1760808782499,102.1,185.47,185.42,3.46286024]